[Event "Paul Kerese Mälestusfestival 2022 Kiirturniir"]
[Site "Pärnu, Estonia Resort Hotel & Spa"]
[Date "????.??.??"]
[Round "2.2"]
[White "Agrest, Evgenij"]
[Black "Protassov, Vlad"]
[Result "1-0"]
[TimeControl "15 minutit partiile + 3 sek käigule"]
[WhiteTitle "GM"]
[WhiteElo "2563"]
[BlackElo "1828"]

1. Nf3 {[%clk 00:15:02]} {[%emt 00:00:03]} Nf6 {[%clk 00:15:04]} {[%emt
00:00:03]} 2. b3 {[%clk 00:15:03]} {[%emt 00:00:02]} d5 {[%clk 00:15:01]}
{[%emt 00:00:05]} 3. Bb2 {[%clk 00:14:52]} {[%emt 00:00:14]} e6 {[%clk
00:15:03]} {[%emt 00:00:02]} 4. e3 {[%clk 00:14:50]} {[%emt 00:00:04]} Nbd7
{[%clk 00:14:53]} {[%emt 00:00:13]} 5. c4 {[%clk 00:14:40]} {[%emt 00:00:13]}
b6 {[%clk 00:14:40]} {[%emt 00:00:16]} 6. cxd5 {[%clk 00:13:58]} {[%emt
00:00:45]} exd5 {[%clk 00:14:38]} {[%emt 00:00:04]} 7. Nc3 {[%clk 00:13:56]}
{[%emt 00:00:05]} Bb7 {[%clk 00:14:31]} {[%emt 00:00:10]} 8. Rc1 {[%clk
00:13:58]} {[%emt 00:00:02]} c5 {[%clk 00:14:25]} {[%emt 00:00:09]} 9. d4
{[%clk 00:13:52]} {[%emt 00:00:08]} Be7 {[%clk 00:13:56]} {[%emt 00:00:32]} 10.
Be2 {[%clk 00:13:47]} {[%emt 00:00:08]} O-O {[%clk 00:13:55]} {[%emt 00:00:04]}
11. O-O {[%clk 00:13:47]} {[%emt 00:00:03]} Rc8 {[%clk 00:13:45]} {[%emt
00:00:13]} 12. Rc2 {[%clk 00:13:36]} {[%emt 00:00:15]} Qc7 {[%clk 00:13:07]}
{[%emt 00:00:41]} 13. Qb1 {[%clk 00:12:57]} {[%emt 00:00:41]} Rfd8 {[%clk
00:12:17]} {[%emt 00:00:53]} 14. Rd1 {[%clk 00:12:19]} {[%emt 00:00:41]} Nf8
{[%clk 00:12:00]} {[%emt 00:00:21]} 15. Nb5 {[%clk 00:10:54]} {[%emt 00:01:28]}
Qb8 {[%clk 00:11:58]} {[%emt 00:00:04]} 16. dxc5 {[%clk 00:10:55]} {[%emt
00:00:02]} bxc5 {[%clk 00:11:48]} {[%emt 00:00:13]} 17. Be5 {[%clk 00:10:55]}
{[%emt 00:00:02]} Qa8 {[%clk 00:10:32]} {[%emt 00:01:20]} 18. Nc7 {[%clk
00:10:55]} {[%emt 00:00:03]} Rxc7 {[%clk 00:10:29]} {[%emt 00:00:06]} 19. Bxc7
{[%clk 00:10:56]} {[%emt 00:00:02]} Rc8 {[%clk 00:10:27]} {[%emt 00:00:06]} 20.
Bg3 {[%clk 00:10:55]} {[%emt 00:00:03]} Ne6 {[%clk 00:10:11]} {[%emt 00:00:19]}
21. Rcc1 {[%clk 00:10:41]} {[%emt 00:00:17]} Ne4 {[%clk 00:09:58]} {[%emt
00:00:17]} 22. Be5 {[%clk 00:10:24]} {[%emt 00:00:19]} h6 {[%clk 00:09:22]}
{[%emt 00:00:39]} 23. Ba1 {[%clk 00:10:05]} {[%emt 00:00:22]} a6 {[%clk
00:08:51]} {[%emt 00:00:36]} 24. Ne1 {[%clk 00:09:42]} {[%emt 00:00:25]} Qb8
{[%clk 00:07:52]} {[%emt 00:01:03]} 25. f3 {[%clk 00:06:56]} {[%emt 00:02:48]}
Nf6 {[%clk 00:06:15]} {[%emt 00:01:40]} 26. Qf5 {[%clk 00:06:38]} {[%emt
00:00:20]} Rd8 {[%clk 00:05:20]} {[%emt 00:00:59]} 27. Be5 {[%clk 00:05:45]}
{[%emt 00:00:55]} Qc8 {[%clk 00:05:12]} {[%emt 00:00:12]} 28. Bd3 {[%clk
00:05:23]} {[%emt 00:00:24]} Qd7 {[%clk 00:04:01]} {[%emt 00:01:14]} 29. Bb1
{[%clk 00:05:04]} {[%emt 00:00:22]} Bc8 {[%clk 00:03:49]} {[%emt 00:00:16]} 30.
Qc2 {[%clk 00:04:44]} {[%emt 00:00:22]} Bb7 {[%clk 00:03:07]} {[%emt 00:00:46]}
31. Nd3 {[%clk 00:04:28]} {[%emt 00:00:19]} Rc8 {[%clk 00:01:54]} {[%emt
00:01:16]} 32. Nf2 {[%clk 00:04:21]} {[%emt 00:00:10]} g6 {[%clk 00:01:43]}
{[%emt 00:00:14]} 33. Qb2 {[%clk 00:03:53]} {[%emt 00:00:30]} Ne8 {[%clk
00:01:37]} {[%emt 00:00:09]} 34. Nh3 {[%clk 00:03:38]} {[%emt 00:00:17]} 1-0

[Event "Paul Kerese Mälestusfestival 2022 Kiirturniir"]
[Site "Pärnu, Estonia Resort Hotel & Spa"]
[Date "????.??.??"]
[Round "2.3"]
[White "Olde, Karl Erik"]
[Black "Maiorov, Nikita"]
[Result "0-1"]
[TimeControl "15 minutit partiile + 3 sek käigule"]
[BlackTitle "GM"]
[WhiteElo "1804"]
[BlackElo "2431"]

1. d4 {[%clk 00:15:05]} {[%emt 00:30:54]} d5 {[%clk 00:14:50]} {[%emt
00:00:17]} 2. c4 {[%clk 00:15:01]} {[%emt 00:00:07]} e6 {[%clk 00:14:52]}
{[%emt 00:00:01]} 3. Nf3 {[%clk 00:15:00]} {[%emt 00:00:04]} Nf6 {[%clk
00:14:52]} {[%emt 00:00:03]} 4. e3 {[%clk 00:15:02]} {[%emt 00:00:02]} b6
{[%clk 00:14:50]} {[%emt 00:00:05]} 5. Nc3 {[%clk 00:15:01]} {[%emt 00:00:03]}
Bb7 {[%clk 00:14:52]} {[%emt 00:00:01]} 6. Be2 {[%clk 00:14:55]} {[%emt
00:00:10]} Bd6 {[%clk 00:14:51]} {[%emt 00:00:04]} 7. O-O {[%clk 00:14:54]}
{[%emt 00:00:04]} O-O {[%clk 00:14:51]} {[%emt 00:00:03]} 8. Qc2 {[%clk
00:14:49]} {[%emt 00:00:09]} a6 {[%clk 00:14:50]} {[%emt 00:00:04]} 9. cxd5
{[%clk 00:14:40]} {[%emt 00:00:12]} exd5 {[%clk 00:14:52]} {[%emt 00:00:01]} 10.
a3 {[%clk 00:14:39]} {[%emt 00:00:04]} Nbd7 {[%clk 00:14:51]} {[%emt 00:00:04]}
11. b4 {[%clk 00:14:40]} {[%emt 00:00:03]} Qe7 {[%clk 00:14:48]} {[%emt
00:00:05]} 12. Bb2 {[%clk 00:14:36]} {[%emt 00:00:07]} b5 {[%clk 00:14:32]}
{[%emt 00:00:19]} 13. Rac1 {[%clk 00:14:15]} {[%emt 00:00:24]} Nb6 {[%clk
00:14:32]} {[%emt 00:00:04]} 14. Bd3 {[%clk 00:13:48]} {[%emt 00:00:30]} Nc4
{[%clk 00:13:58]} {[%emt 00:00:36]} 15. Rfe1 {[%clk 00:13:17]} {[%emt
00:00:34]} Rae8 {[%clk 00:13:56]} {[%emt 00:00:05]} 16. Re2 {[%clk 00:13:01]}
{[%emt 00:00:20]} Ne4 {[%clk 00:13:19]} {[%emt 00:00:40]} 17. Rce1 {[%clk
00:09:59]} {[%emt 00:03:04]} Kh8 {[%clk 00:13:04]} {[%emt 00:00:17]} 18. Bc1
{[%clk 00:09:51]} {[%emt 00:00:11]} f6 {[%clk 00:12:37]} {[%emt 00:00:30]} 19.
Bxe4 {[%clk 00:08:58]} {[%emt 00:00:57]} dxe4 {[%clk 00:12:37]} {[%emt
00:00:03]} 20. Nd2 {[%clk 00:09:00]} {[%emt 00:00:02]} Nb6 {[%clk 00:12:24]}
{[%emt 00:00:16]} 21. Nb3 {[%clk 00:08:57]} {[%emt 00:00:07]} Nd5 {[%clk
00:06:31]} {[%emt 00:05:56]} 22. Nc5 {[%clk 00:07:53]} {[%emt 00:01:07]} Nxc3
{[%clk 00:06:32]} {[%emt 00:00:02]} 23. Qxc3 {[%clk 00:07:51]} {[%emt
00:00:04]} Bd5 {[%clk 00:06:33]} {[%emt 00:00:01]} 24. Nxa6 {[%clk 00:07:22]}
{[%emt 00:00:33]} f5 {[%clk 00:06:35]} {[%emt 00:00:02]} 25. Rc2 {[%clk
00:06:29]} {[%emt 00:00:55]} Rf7 {[%clk 00:05:45]} {[%emt 00:00:52]} 26. Bd2
{[%clk 00:06:08]} {[%emt 00:00:25]} Qh4 {[%clk 00:05:31]} {[%emt 00:00:17]} 27.
g3 {[%clk 00:05:42]} {[%emt 00:00:29]} Qh3 {[%clk 00:05:32]} {[%emt 00:00:01]}
28. Rf1 {[%clk 00:04:51]} {[%emt 00:00:55]} f4 {[%clk 00:03:49]} {[%emt
00:01:46]} 29. exf4 {[%clk 00:04:07]} {[%emt 00:00:47]} e3 {[%clk 00:03:50]}
{[%emt 00:00:02]} 30. f3 {[%clk 00:04:10]} exd2 {[%clk 00:03:40]} {[%emt
00:00:13]} 31. Rxd2 {[%clk 00:04:11]} {[%emt 00:00:02]} Rfe7 {[%clk 00:03:35]}
{[%emt 00:00:07]} 32. Rdf2 {[%clk 00:03:57]} {[%emt 00:00:18]} Bc4 {[%clk
00:03:00]} {[%emt 00:00:38]} 33. Nc5 {[%clk 00:03:06]} {[%emt 00:00:54]} Bxf1
{[%clk 00:02:56]} {[%emt 00:00:07]} 34. Rxf1 {[%clk 00:03:08]} {[%emt
00:00:02]} Re2 {[%clk 00:02:56]} {[%emt 00:00:03]} 0-1

[Event "Paul Kerese Mälestusfestival 2022 Kiirturniir"]
[Site "Pärnu, Estonia Resort Hotel & Spa"]
[Date "????.??.??"]
[Round "2.4"]
[White "Kantans, Toms"]
[Black "Paan, Karel"]
[Result "1-0"]
[TimeControl "15 minutit partiile + 3 sek käigule"]
[WhiteTitle "GM"]
[WhiteElo "2422"]
[BlackElo "1803"]

1. e4 {[%clk 00:15:04]} {[%emt 00:00:01]} e6 {[%clk 00:15:05]} {[%emt
00:00:02]} 2. c4 {[%clk 00:15:04]} {[%emt 00:00:03]} c5 {[%clk 00:14:48]}
{[%emt 00:00:19]} 3. Nc3 {[%clk 00:15:05]} {[%emt 00:00:02]} Nc6 {[%clk
00:14:49]} {[%emt 00:00:02]} 4. Nf3 {[%clk 00:15:06]} {[%emt 00:00:02]} g6
{[%clk 00:14:22]} {[%emt 00:00:29]} 5. d4 {[%clk 00:15:08]} {[%emt 00:00:02]}
cxd4 {[%clk 00:14:12]} {[%emt 00:00:13]} 6. Nxd4 {[%clk 00:15:09]} {[%emt
00:00:02]} Bg7 {[%clk 00:14:12]} {[%emt 00:00:02]} 7. Ndb5 {[%clk 00:15:07]}
{[%emt 00:00:05]} Nge7 {[%clk 00:12:55]} {[%emt 00:01:20]} 8. Nd6+ {[%clk
00:15:07]} {[%emt 00:00:03]} Kf8 {[%clk 00:12:57]} {[%emt 00:00:01]} 9. Be3
{[%clk 00:14:37]} {[%emt 00:00:34]} f5 {[%clk 00:11:44]} {[%emt 00:01:16]} 10.
Qd2 {[%clk 00:13:25]} {[%emt 00:01:15]} Qa5 {[%clk 00:10:36]} {[%emt 00:01:11]}
11. f3 {[%clk 00:12:54]} {[%emt 00:00:34]} a6 {[%clk 00:09:28]} {[%emt
00:01:11]} 12. Be2 {[%clk 00:12:42]} {[%emt 00:00:15]} b5 {[%clk 00:09:00]}
{[%emt 00:00:31]} 13. cxb5 {[%clk 00:12:41]} {[%emt 00:00:04]} axb5 {[%clk
00:09:02]} {[%emt 00:00:01]} 14. Ndxb5 {[%clk 00:12:29]} {[%emt 00:00:15]} Ba6
{[%clk 00:08:31]} {[%emt 00:00:34]} 15. a4 {[%clk 00:10:46]} {[%emt 00:01:47]}
Bxb5 {[%clk 00:07:32]} {[%emt 00:01:02]} 16. Bxb5 {[%clk 00:10:47]} {[%emt
00:00:02]} Bxc3 {[%clk 00:07:26]} {[%emt 00:00:09]} 17. Qxc3 {[%clk 00:10:48]}
{[%emt 00:00:02]} Qxc3+ {[%clk 00:05:12]} {[%emt 00:02:17]} 18. bxc3 {[%clk
00:10:50]} {[%emt 00:00:01]} 1-0

[Event "Paul Kerese Mälestusfestival 2022 Kiirturniir"]
[Site "Pärnu, Estonia Resort Hotel & Spa"]
[Date "????.??.??"]
[Round "2.5"]
[White "Hansson, Markus"]
[Black "Chukavin, Kirill"]
[Result "0-1"]
[TimeControl "15 minutit partiile + 3 sek käigule"]
[BlackTitle "FM"]
[WhiteElo "1781"]
[BlackElo "2418"]

1. c4 {[%clk 00:15:03]} {[%emt 00:00:01]} e6 {[%clk 00:15:04]} {[%emt
00:00:03]} 2. e4 {[%clk 00:15:04]} {[%emt 00:00:02]} d5 {[%clk 00:14:59]}
{[%emt 00:00:08]} 3. cxd5 {[%clk 00:15:06]} {[%emt 00:00:02]} exd5 {[%clk
00:15:00]} 4. exd5 {[%clk 00:15:08]} {[%emt 00:00:01]} Nf6 {[%clk 00:15:00]}
{[%emt 00:00:03]} 5. Nc3 {[%clk 00:15:10]} {[%emt 00:00:02]} Be7 {[%clk
00:14:44]} {[%emt 00:00:19]} 6. Nf3 {[%clk 00:15:10]} {[%emt 00:00:04]} O-O
{[%clk 00:14:42]} {[%emt 00:00:04]} 7. d4 {[%clk 00:15:11]} {[%emt 00:00:02]}
Nbd7 {[%clk 00:14:41]} {[%emt 00:00:04]} 8. Be2 {[%clk 00:14:56]} {[%emt
00:00:18]} Nb6 {[%clk 00:14:43]} {[%emt 00:00:02]} 9. O-O {[%clk 00:14:56]}
{[%emt 00:00:03]} Nbxd5 {[%clk 00:14:43]} {[%emt 00:00:02]} 10. h3 {[%clk
00:14:42]} {[%emt 00:00:18]} Re8 {[%clk 00:14:30]} {[%emt 00:00:16]} 11. a3
{[%clk 00:13:20]} {[%emt 00:01:26]} c6 {[%clk 00:13:59]} {[%emt 00:00:33]} 12.
Re1 {[%clk 00:13:06]} {[%emt 00:00:18]} h6 {[%clk 00:13:33]} {[%emt 00:00:29]}
13. Bd3 {[%clk 00:12:55]} {[%emt 00:00:14]} Bd6 {[%clk 00:13:17]} {[%emt
00:00:19]} 14. Bd2 {[%clk 00:12:23]} {[%emt 00:00:36]} Rxe1+ {[%clk 00:13:06]}
{[%emt 00:00:13]} 15. Qxe1 {[%clk 00:12:19]} {[%emt 00:00:07]} Be6 {[%clk
00:11:52]} {[%emt 00:01:17]} 16. Nxd5 Nxd5 17. Qe4 {[%clk 00:11:43]} Nf6 {[%clk
00:11:34]} {[%emt 00:00:02]} 18. Qe2 {[%clk 00:11:31]} {[%emt 00:00:14]} Qb6
{[%clk 00:11:08]} {[%emt 00:00:30]} 19. Bc3 {[%clk 00:11:06]} {[%emt 00:00:27]}
Re8 {[%clk 00:10:36]} {[%emt 00:00:35]} 20. Qd2 {[%clk 00:11:09]} {[%emt
00:00:01]} Bd5 {[%clk 00:08:11]} {[%emt 00:02:27]} 21. Ba5 {[%clk 00:10:35]}
{[%emt 00:00:38]} Qb3 {[%clk 00:06:46]} {[%emt 00:01:27]} 22. Bc2 {[%clk
00:09:39]} {[%emt 00:00:59]} Qc4 {[%clk 00:06:17]} {[%emt 00:00:32]} 23. Bd3
{[%clk 00:08:51]} {[%emt 00:00:52]} Qa4 {[%clk 00:06:06]} {[%emt 00:00:14]} 24.
Nh4 {[%clk 00:07:09]} {[%emt 00:01:45]} Ne4 {[%clk 00:04:46]} {[%emt 00:01:23]}
25. Bc2 {[%clk 00:03:56]} {[%emt 00:03:17]} Qb5 {[%clk 00:02:48]} {[%emt
00:02:00]} 26. Bxe4 {[%clk 00:03:29]} {[%emt 00:00:29]} Rxe4 {[%clk 00:02:47]}
{[%emt 00:00:04]} 27. Nf5 {[%clk 00:03:02]} {[%emt 00:00:30]} Bf4 {[%clk
00:02:20]} {[%emt 00:00:30]} 28. Qb4 {[%clk 00:02:48]} {[%emt 00:00:18]} Qxb4
{[%clk 00:01:27]} {[%emt 00:00:56]} 29. Bxb4 {[%clk 00:02:50]} {[%emt
00:00:01]} Be6 {[%clk 00:01:21]} {[%emt 00:00:09]} 30. Nd6 {[%clk 00:02:24]}
{[%emt 00:00:30]} Bxd6 {[%clk 00:00:51]} {[%emt 00:00:33]} 31. Bxd6 {[%clk
00:02:26]} {[%emt 00:00:01]} Rxd4 {[%clk 00:00:53]} 32. Be5 {[%clk 00:02:11]}
{[%emt 00:00:17]} Rd3 {[%clk 00:00:51]} {[%emt 00:00:05]} 33. Kf1 {[%clk
00:02:03]} {[%emt 00:00:11]} f6 {[%clk 00:00:48]} {[%emt 00:00:06]} 34. Bc3
{[%clk 00:02:02]} {[%emt 00:00:04]} Kf7 {[%clk 00:00:49]} {[%emt 00:00:02]} 35.
Re1 {[%clk 00:01:50]} {[%emt 00:00:15]} c5 {[%clk 00:00:35]} {[%emt 00:00:18]}
36. Re3 {[%clk 00:01:47]} {[%emt 00:00:05]} Rd1+ {[%clk 00:00:37]} {[%emt
00:00:02]} 37. Ke2 {[%clk 00:01:48]} {[%emt 00:00:02]} Rg1 {[%clk 00:00:37]}
{[%emt 00:00:03]} 38. Rg3 {[%clk 00:01:38]} {[%emt 00:00:14]} b5 {[%clk
00:00:38]} {[%emt 00:00:01]} 39. Be1 {[%clk 00:01:20]} {[%emt 00:00:20]} Bc4+
{[%emt 00:00:12]} 40. Kd2 {[%clk 00:01:06]} {[%emt 00:00:11]} Bf1 {[%clk
00:00:34]} {[%emt 00:00:04]} 41. b3 {[%clk 00:00:36]} {[%emt 00:00:33]} Rxg2
{[%clk 00:00:28]} {[%emt 00:00:08]} 42. Rxg2 {[%clk 00:00:37]} {[%emt
00:00:03]} Bxg2 {[%clk 00:00:30]} 43. h4 {[%clk 00:00:39]} Ke6 {[%clk
00:00:28]} {[%emt 00:00:05]} 44. Ke3 {[%clk 00:00:33]} {[%emt 00:00:08]} Kd5
{[%clk 00:00:29]} {[%emt 00:00:03]} 45. Bc3 {[%clk 00:00:27]} {[%emt 00:00:09]}
Bh3 {[%clk 00:00:24]} {[%emt 00:00:08]} 46. b4 {[%clk 00:00:22]} {[%emt
00:00:08]} Kc4 {[%clk 00:00:23]} {[%emt 00:00:03]} 47. Bd2 {[%clk 00:00:16]}
{[%emt 00:00:09]} Bf5 {[%clk 00:00:23]} {[%emt 00:00:03]} 48. f4 {[%clk
00:00:10]} {[%emt 00:00:09]} a6 {[%clk 00:00:18]} {[%emt 00:00:07]} 49. bxc5
{[%clk 00:00:09]} {[%emt 00:00:03]} Bd7 {[%clk 00:00:06]} {[%emt 00:00:15]} 50.
Bb4 {[%clk 00:00:07]} {[%emt 00:00:06]} Bc6 {[%clk 00:00:08]} 51. Ke2 {[%clk
00:00:06]} {[%emt 00:00:04]} Kb3 {[%clk 00:00:07]} {[%emt 00:00:04]} 52. Ke3
{[%clk 00:00:08]} Ka4 {[%clk 00:00:07]} {[%emt 00:00:03]} 53. Kd3 {[%clk
00:00:09]} {[%emt 00:00:02]} h5 {[%clk 00:00:06]} {[%emt 00:00:03]} 54. Kc3
{[%clk 00:00:12]} a5 {[%clk 00:00:08]} {[%emt 00:00:02]} 55. Bxa5 {[%clk
00:00:04]} {[%emt 00:00:11]} Kxa5 {[%clk 00:00:09]} {[%emt 00:00:01]} 56. Kb3
{[%clk 00:00:06]} Bd5+ {[%clk 00:00:11]} {[%emt 00:00:01]} 57. Kc3 {[%clk
00:00:08]} {[%emt 00:00:01]} Ka4 {[%clk 00:00:11]} {[%emt 00:00:03]} 0-1

[Event "Paul Kerese Mälestusfestival 2022 Kiirturniir"]
[Site "Pärnu, Estonia Resort Hotel & Spa"]
[Date "????.??.??"]
[Round "2.6"]
[White "Volodin, Aleksandr"]
[Black "Kull, Tormi"]
[Result "1-0"]
[TimeControl "15 minutit partiile + 3 sek käigule"]
[WhiteTitle "GM"]
[WhiteElo "2407"]
[BlackElo "1740"]

1. d4 {[%clk 00:15:04]} {[%emt 00:00:02]} c5 {[%clk 00:14:58]} {[%emt
00:00:09]} 2. Nf3 {[%clk 00:14:56]} {[%emt 00:00:11]} cxd4 {[%clk 00:14:50]}
{[%emt 00:00:11]} 3. Nxd4 {[%clk 00:14:58]} Nf6 {[%clk 00:14:48]} {[%emt
00:00:05]} 4. g3 {[%clk 00:14:59]} {[%emt 00:00:02]} g6 {[%clk 00:14:49]}
{[%emt 00:00:02]} 5. Bg2 {[%clk 00:15:01]} {[%emt 00:00:01]} Bg7 {[%clk
00:14:49]} {[%emt 00:00:02]} 6. c4 {[%clk 00:15:03]} {[%emt 00:00:01]} Nc6
{[%clk 00:14:49]} {[%emt 00:00:03]} 7. O-O {[%clk 00:14:59]} {[%emt 00:00:07]}
O-O {[%clk 00:14:48]} {[%emt 00:00:03]} 8. Nc3 {[%clk 00:14:58]} {[%emt
00:00:04]} a6 {[%clk 00:14:47]} {[%emt 00:00:05]} 9. Nb3 {[%clk 00:14:50]}
{[%emt 00:00:10]} d6 {[%clk 00:14:45]} {[%emt 00:00:05]} 10. e4 {[%clk
00:14:06]} {[%emt 00:00:48]} Qc7 {[%clk 00:14:42]} {[%emt 00:00:06]} 11. h3
{[%clk 00:13:53]} {[%emt 00:00:16]} Ne5 {[%clk 00:14:42]} {[%emt 00:00:03]} 12.
Nd5 {[%clk 00:13:30]} {[%emt 00:00:26]} Nxd5 {[%clk 00:14:42]} {[%emt
00:00:03]} 13. cxd5 {[%clk 00:13:31]} {[%emt 00:00:02]} f5 {[%clk 00:14:36]}
{[%emt 00:00:10]} 14. exf5 {[%clk 00:12:57]} {[%emt 00:00:37]} Bxf5 {[%clk
00:14:27]} {[%emt 00:00:12]} 15. Nd4 {[%clk 00:12:59]} {[%emt 00:00:01]} Bd7
{[%clk 00:13:31]} {[%emt 00:00:59]} 16. Bg5 {[%clk 00:12:23]} {[%emt 00:00:37]}
Rf7 {[%clk 00:13:17]} {[%emt 00:00:18]} 17. Ne6 {[%clk 00:11:57]} {[%emt
00:00:29]} Qb6 {[%clk 00:12:38]} {[%emt 00:00:42]} 18. Be3 {[%clk 00:10:51]}
{[%emt 00:01:09]} Qb5 {[%clk 00:11:46]} {[%emt 00:00:56]} 19. Nc7 {[%clk
00:10:38]} {[%emt 00:00:16]} Qxb2 {[%clk 00:11:18]} {[%emt 00:00:30]} 20. Nxa8
{[%clk 00:10:22]} {[%emt 00:00:19]} Bb5 {[%clk 00:11:20]} {[%emt 00:00:01]} 21.
Rb1 {[%clk 00:09:59]} {[%emt 00:00:27]} Qxa2 {[%clk 00:11:13]} {[%emt
00:00:10]} 22. Rxb5 {[%clk 00:09:19]} {[%emt 00:00:44]} axb5 {[%clk 00:11:15]}
23. Nc7 {[%clk 00:09:20]} {[%emt 00:00:01]} Nc4 {[%clk 00:11:03]} {[%emt
00:00:15]} 24. Nxb5 {[%clk 00:07:08]} {[%emt 00:02:15]} Be5 {[%clk 00:11:02]}
{[%emt 00:00:03]} 25. Bh6 {[%clk 00:06:15]} {[%emt 00:00:56]} Qa5 {[%clk
00:10:12]} {[%emt 00:00:54]} 26. Qg4 {[%clk 00:05:58]} {[%emt 00:00:19]} Bg7
{[%clk 00:09:02]} {[%emt 00:01:12]} 27. Bxg7 {[%clk 00:05:47]} {[%emt
00:00:14]} Kxg7 {[%emt 00:00:03]} 28. Qxc4 {[%emt 00:00:02]} 1-0

[Event "Paul Kerese Mälestusfestival 2022 Kiirturniir"]
[Site "Pärnu, Estonia Resort Hotel & Spa"]
[Date "????.??.??"]
[Round "2.7"]
[White "Vohla, Mihkel"]
[Black "Smirnov, Artem"]
[Result "1-0"]
[TimeControl "15 minutit partiile + 3 sek käigule"]
[BlackTitle "IM"]
[WhiteElo "1720"]
[BlackElo "2287"]

1. e4 {[%clk 00:15:04]} {[%emt 00:00:02]} c5 {[%clk 00:15:05]} {[%emt
00:00:02]} 2. f4 {[%clk 00:15:05]} {[%emt 00:00:02]} d5 {[%clk 00:14:56]}
{[%emt 00:00:12]} 3. e5 {[%clk 00:15:05]} {[%emt 00:00:02]} Nc6 {[%clk
00:14:52]} {[%emt 00:00:06]} 4. Nf3 {[%clk 00:15:05]} {[%emt 00:00:04]} Nh6
{[%clk 00:14:03]} {[%emt 00:00:52]} 5. c4 {[%clk 00:15:04]} {[%emt 00:00:04]}
d4 {[%clk 00:13:52]} {[%emt 00:00:14]} 6. Bd3 {[%clk 00:14:40]} {[%emt
00:00:27]} e6 {[%clk 00:10:52]} {[%emt 00:03:04]} 7. O-O {[%clk 00:14:39]}
{[%emt 00:00:04]} Be7 {[%clk 00:10:31]} {[%emt 00:00:24]} 8. Be4 {[%clk
00:14:19]} {[%emt 00:00:23]} Qc7 {[%clk 00:10:33]} {[%emt 00:00:02]} 9. d3
{[%clk 00:14:13]} {[%emt 00:00:09]} b6 {[%clk 00:10:32]} {[%emt 00:00:03]} 10.
Nbd2 {[%clk 00:13:14]} {[%emt 00:01:02]} Bb7 {[%clk 00:10:30]} {[%emt
00:00:06]} 11. Ng5 {[%clk 00:13:13]} {[%emt 00:00:04]} Nf5 {[%clk 00:08:45]}
{[%emt 00:01:47]} 12. Bxf5 {[%clk 00:12:07]} {[%emt 00:01:09]} exf5 {[%clk
00:08:47]} {[%emt 00:00:02]} 13. e6 {[%clk 00:12:06]} {[%emt 00:00:04]} Bxg5
{[%clk 00:07:40]} {[%emt 00:01:10]} 14. exf7+ {[%clk 00:11:47]} {[%emt
00:00:22]} Qxf7 {[%clk 00:07:41]} {[%emt 00:00:02]} 15. fxg5 {[%clk 00:11:47]}
{[%emt 00:00:04]} O-O {[%clk 00:06:12]} {[%emt 00:01:32]} 16. Nf3 {[%clk
00:11:42]} {[%emt 00:00:07]} Ne7 {[%clk 00:02:40]} {[%emt 00:03:36]} 17. Ne5
{[%clk 00:11:03]} {[%emt 00:00:42]} Qe6 {[%clk 00:02:36]} {[%emt 00:00:07]} 18.
Bf4 {[%clk 00:11:00]} {[%emt 00:00:05]} Ng6 {[%clk 00:02:33]} {[%emt 00:00:07]}
19. Nxg6 {[%clk 00:10:10]} {[%emt 00:00:53]} Qxg6 {[%clk 00:02:33]} {[%emt
00:00:03]} 20. Qd2 {[%clk 00:10:02]} {[%emt 00:00:11]} Rae8 {[%clk 00:02:32]}
{[%emt 00:00:04]} 21. Rae1 {[%clk 00:10:01]} {[%emt 00:00:03]} Qc6 {[%clk
00:01:16]} {[%emt 00:01:20]} 22. a3 {[%clk 00:09:54]} {[%emt 00:00:10]} a5
{[%clk 00:00:41]} {[%emt 00:00:38]} 23. Qf2 {[%clk 00:09:16]} {[%emt 00:00:41]}
a4 {[%clk 00:00:28]} {[%emt 00:00:17]} 24. Qg3 {[%clk 00:09:00]} {[%emt
00:00:19]} Rxe1 {[%clk 00:00:14]} {[%emt 00:00:17]} 25. Rxe1 {[%clk 00:09:01]}
{[%emt 00:00:01]} Re8 {[%clk 00:00:15]} {[%emt 00:00:02]} 26. Rxe8+ {[%clk
00:08:35]} {[%emt 00:00:30]} Qxe8 {[%clk 00:00:17]} {[%emt 00:00:01]} 27. Be5
{[%clk 00:08:35]} {[%emt 00:00:01]} Qc6 {[%clk 00:00:12]} {[%emt 00:00:09]} 28.
h4 {[%clk 00:08:35]} {[%emt 00:00:03]} Qg6 {[%clk 00:00:09]} {[%emt 00:00:06]}
29. Bxd4 {[%clk 00:08:03]} {[%emt 00:00:34]} cxd4 {[%clk 00:00:06]} {[%emt
00:00:06]} 30. Qb8+ {[%clk 00:08:04]} {[%emt 00:00:02]} Kf7 {[%clk 00:00:06]}
{[%emt 00:00:03]} 31. Qxb7+ {[%clk 00:08:05]} {[%emt 00:00:02]} Kf8 {[%clk
00:00:05]} {[%emt 00:00:04]} 32. Qc8+ {[%clk 00:07:52]} {[%emt 00:00:16]} Ke7
{[%clk 00:00:06]} {[%emt 00:00:03]} 33. Qc7+ {[%clk 00:07:45]} {[%emt
00:00:09]} Kf8 {[%clk 00:00:07]} {[%emt 00:00:02]} 34. Qd8+ {[%clk 00:07:43]}
{[%emt 00:00:05]} Kf7 {[%clk 00:00:07]} {[%emt 00:00:03]} 35. Qxd4 {[%clk
00:07:37]} {[%emt 00:00:09]} Qh5 {[%clk 00:00:08]} {[%emt 00:00:03]} 36. Qd7+
{[%clk 00:07:31]} {[%emt 00:00:09]} Kg8 {[%clk 00:00:07]} {[%emt 00:00:03]} 37.
Qe6+ {[%clk 00:07:28]} {[%emt 00:00:05]} Kf8 {[%clk 00:00:08]} {[%emt
00:00:03]} 38. Qxf5+ {[%clk 00:07:29]} {[%emt 00:00:02]} Ke7 {[%clk 00:00:10]}
{[%emt 00:00:02]} 39. Qe4+ {[%clk 00:07:15]} {[%emt 00:00:17]} Kd8 {[%clk
00:00:10]} {[%emt 00:00:03]} 40. Kh2 {[%clk 00:07:00]} {[%emt 00:00:17]} h6
{[%clk 00:00:09]} {[%emt 00:00:04]} 41. gxh6 {[%clk 00:06:58]} {[%emt
00:00:05]} gxh6 {[%clk 00:00:10]} {[%emt 00:00:02]} 42. Qd5+ {[%clk 00:06:59]}
{[%emt 00:00:02]} Qxd5 {[%clk 00:00:07]} {[%emt 00:00:06]} 43. cxd5 {[%clk
00:07:01]} {[%emt 00:00:01]} 1-0